bitfinex/quotes_BTCUSD_20251213
["timestamp","ask_amount","ask_price","bid_price","bid_amount"]
[1765600083431,8.557e-05,90391.0,90390.0,0.34728408]
[1765600087802,8.557e-05,90391.0,90390.0,0.30409608]
[1765600090925,8.557e-05,90391.0,90390.0,0.34728408]
[1765600098073,8.557e-05,90391.0,90390.0,0.30409608]
[1765600100294,8.557e-05,90391.0,90390.0,0.34728408]
[1765600101163,8.557e-05,90391.0,90390.0,0.30409608]
[1765600101980,8.557e-05,90391.0,90390.0,0.34728408]
[1765600102486,8.557e-05,90391.0,90390.0,0.30409608]
[1765600103501,8.557e-05,90391.0,90390.0,0.34728408]
[1765600104060,8.557e-05,90391.0,90390.0,0.30409608]
[1765600109626,8.557e-05,90391.0,90390.0,0.34728408]
[1765600112932,8.557e-05,90391.0,90390.0,0.30409608]
[1765600113497,8.557e-05,90391.0,90390.0,0.30309608]
[1765600115447,0.22117748,90392.0,90391.0,0.2907]
[1765600116154,0.22117748,90392.0,90391.0,0.32391915]
[1765600116351,0.22117748,90392.0,90391.0,0.03321915]
[1765600122898,0.01251092,90393.0,90391.0,0.03321915]
[1765600123101,0.01251092,90393.0,90391.0,0.07773945]
[1765600123311,0.00144812,90393.0,90391.0,0.36843945]
[1765600123492,0.00144812,90393.0,90391.0,0.3352203]
[1765600123691,0.00144812,90393.0,90392.0,0.32391915]
[1765600124706,0.00144812,90393.0,90392.0,0.03321915]
[1765600125504,0.00244812,90393.0,90392.0,0.03321915]
[1765600129580,0.00244812,90393.0,90392.0,0.07640715]
[1765600130496,0.00244812,90393.0,90392.0,0.03321915]
[1765600142263,0.22125851,90392.0,90391.0,0.0013323]
[1765600144582,0.22125851,90392.0,90391.0,0.0023323]
[1765600159493,0.0110661,90366.0,90352.0,0.04342646]
[1765600159625,0.01106537,90372.0,90352.0,0.04342646]
[1765600159626,0.22131899,90368.0,90366.0,0.01744]
[1765600159846,0.22131728,90368.0,90367.0,0.03322422]
[1765600160096,0.22131728,90368.0,90366.0,0.01744]
[1765600160270,0.22131728,90368.0,90366.0,0.05066422]
[1765600161243,0.01106574,90369.0,90366.0,0.05066422]
[1765600161663,0.01106574,90369.0,90366.0,0.01744]
[1765600162095,0.01106574,90369.0,90367.0,0.03322422]
[1765600163734,0.01106574,90369.0,90368.0,0.043188]
[1765600164336,0.01106574,90369.0,90368.0,0.36711222]
[1765600164537,0.01106574,90369.0,90368.0,0.07641222]
[1765600164757,0.01106574,90369.0,90368.0,0.03322422]
[1765600172264,0.01106574,90369.0,90368.0,0.07641222]
[1765600175597,0.01106574,90369.0,90368.0,0.03322422]
[1765600178384,0.01106574,90369.0,90368.0,0.07641222]
[1765600179985,0.01106574,90369.0,90368.0,0.03322422]
[1765600180568,0.03318339,90369.0,90368.0,0.03322422]
[1765600180869,0.01106574,90369.0,90368.0,0.03322422]
[1765600181049,0.01106647,90363.0,90355.0,0.01744]
[1765600181247,0.01106647,90363.0,90361.0,0.03322919]
[1765600181454,0.22133197,90362.0,90361.0,0.03322919]
[1765600183341,0.22233197,90362.0,90361.0,0.03322919]
[1765600183751,0.001,90362.0,90361.0,0.03322919]
[1765600183949,0.001,90362.0,90361.0,0.32392919]
[1765600184152,0.002,90362.0,90361.0,0.32526149]
[1765600184780,0.002,90362.0,90361.0,0.36844949]
[1765600185830,0.002,90362.0,90361.0,0.07774949]
[1765600189155,0.002,90362.0,90361.0,0.09988293]
[1765600189300,0.002,90362.0,90361.0,0.07774949]
[1765600190073,0.002,90362.0,90361.0,0.03456149]
[1765600190272,0.002,90362.0,90361.0,0.05669493]
[1765600190467,0.002,90362.0,90361.0,0.09988293]
[1765600190670,0.002,90362.0,90361.0,0.07774949]
[1765600191838,0.002,90362.0,90361.0,0.09988293]
[1765600195258,0.002,90362.0,90361.0,0.07774949]
[1765600199158,0.002,90362.0,90361.0,0.09988293]
[1765600199916,0.002,90362.0,90361.0,0.05669493]
[1765600200132,0.002,90362.0,90361.0,0.09988293]
[1765600205955,0.002,90362.0,90361.0,0.07774949]
[1765600211596,0.002,90362.0,90361.0,0.0445203]
[1765600212794,0.002,90362.0,90361.0,0.05558628]
[1765600216058,0.002,90362.0,90361.0,0.01239828]
[1765600216641,0.002,90362.0,90361.0,0.05558628]
[1765600237029,0.002,90362.0,90361.0,0.07771972]
[1765600245122,0.002,90362.0,90361.0,0.03453172]
[1765600245311,0.002,90362.0,90361.0,0.07771972]
[1765600247160,0.002,90362.0,90361.0,0.05558628]
[1765600247523,0.001,90362.0,90361.0,0.05558628]
[1765600248079,0.01106488,90376.0,90373.0,0.05425325]
[1765600248800,0.01106488,90376.0,90373.0,0.01106525]
[1765600249593,0.01106488,90376.0,90373.0,0.34495325]
[1765600252817,0.01106402,90383.0,90378.0,0.043188]
[1765600253019,0.01106414,90382.0,90378.0,0.043188]
[1765600253222,0.01106427,90381.0,90378.0,0.043188]
[1765600253450,0.22129524,90377.0,90376.0,0.2907]
[1765600254258,0.22129524,90377.0,90370.0,0.01744]
[1765600254259,0.22130993,90371.0,90370.0,0.01744]
[1765600256468,0.22230993,90371.0,90370.0,0.01744]
[1765600256673,0.22330993,90371.0,90370.0,0.01744]
[1765600256874,0.002,90371.0,90370.0,0.01744]
[1765600258597,0.23237799,90370.0,90367.0,0.01744]
[1765600259599,0.01106561,90370.0,90367.0,0.01744]
[1765600261611,0.22132217,90366.0,90365.0,0.2907]
[1765600262776,0.22133194,90363.0,90361.0,0.01744]
[1765600263650,0.22133194,90363.0,90359.0,0.3239275]
[1765600263651,0.22133442,90361.0,90359.0,0.2907]
[1765600263861,0.22133442,90361.0,90356.0,0.03322956]
[1765600264897,0.22133442,90361.0,90356.0,0.04429689]
[1765600265840,0.22133442,90361.0,90357.0,0.01106721]
[1765600266827,0.22133442,90361.0,90356.0,0.04429689]
[1765600267203,0.22133442,90361.0,90356.0,0.03322956]
[1765600267393,0.22090714,90361.0,90356.0,0.04429689]
[1765600267598,0.22090714,90361.0,90356.0,0.03322956]
[1765600267883,0.22090714,90361.0,90356.0,0.04429689]
[1765600268010,0.22090714,90361.0,90357.0,0.01106721]
[1765600269447,0.22090714,90361.0,90355.0,0.01744]
[1765600270834,0.22290714,90361.0,90355.0,0.01744]
[1765600272571,0.22290714,90361.0,90352.0,0.00023846]
[1765600272752,0.22290714,90361.0,90358.0,0.01744]
[1765600274121,0.22290714,90361.0,90352.0,0.01767846]
[1765600274551,0.22290714,90361.0,90356.0,0.0332296]
[1765600274829,0.22290714,90361.0,90352.0,0.01767846]
[1765600274996,0.22290714,90361.0,90356.0,0.0332296]
[1765600275266,0.22290714,90361.0,90352.0,0.01767846]
[1765600275641,0.22290714,90361.0,90356.0,0.0332296]
[1765600275811,0.22290714,90361.0,90352.0,0.01767846]
[1765600276022,0.22290714,90361.0,90357.0,0.01767846]
[1765600284474,0.22290714,90361.0,90352.0,0.00023846]
[1765600284636,0.22290714,90361.0,90355.0,0.01767846]
[1765600290580,0.22290714,90361.0,90355.0,0.02874591]
[1765600290876,0.22290714,90361.0,90355.0,0.01767846]
[1765600305574,0.22290714,90361.0,90355.0,0.02874591]
[1765600305983,0.22290714,90361.0,90355.0,0.01767846]
[1765600306186,0.22290714,90361.0,90355.0,0.02874591]
[1765600306850,0.22290714,90361.0,90355.0,0.01767846]
[1765600308424,0.22290714,90361.0,90355.0,0.02874591]
[1765600308590,0.22290714,90361.0,90355.0,0.01767846]
[1765600308889,0.22290714,90361.0,90355.0,0.02874591]
[1765600310034,0.22290714,90361.0,90355.0,0.01767846]
[1765600312353,0.22290714,90361.0,90355.0,0.02874591]
[1765600312912,0.22290714,90361.0,90355.0,0.01767846]
[1765600317394,0.22290714,90361.0,90352.0,0.00023846]
[1765600318251,0.22290714,90361.0,90352.0,0.03347049]
[1765600318549,0.22290714,90361.0,90352.0,0.00023846]
[1765600318754,0.22290714,90361.0,90353.0,0.03323203]
[1765600319158,0.22290714,90361.0,90352.0,0.00023846]
[1765600319335,0.22290714,90361.0,90353.0,0.03323203]
[1765600320672,0.22290714,90361.0,90352.0,0.00023846]
[1765600320845,0.22290714,90361.0,90352.0,0.03347049]
[1765600322620,0.22290714,90361.0,90352.0,0.00023846]
[1765600323266,0.26604958,90361.0,90352.0,0.00023846]
[1765600323465,0.27048143,90361.0,90352.0,0.00023846]
[1765600323670,0.26948143,90361.0,90352.0,0.00023846]
[1765600324339,0.27048143,90361.0,90352.0,0.00023846]
[1765600324478,0.26948143,90361.0,90352.0,0.00023846]
[1765600324883,0.27148143,90361.0,90352.0,0.00023846]
[1765600325130,0.27048143,90361.0,90352.0,0.00023846]
[1765600325477,0.27248143,90361.0,90352.0,0.00023846]
[1765600340956,0.2828001,90361.0,90352.0,0.00023846]
[1765600342097,0.2808001,90361.0,90352.0,0.00023846]
[1765600342293,0.2838001,90361.0,90352.0,0.00023846]
[1765600343517,0.54357354,90361.0,90352.0,0.00023846]
[1765600343715,0.54157354,90361.0,90352.0,0.00023846]
[1765600343951,0.54457354,90361.0,90352.0,0.00023846]
[1765600349885,0.45141271,90361.0,90352.0,0.00023846]
[1765600350093,0.49455515,90361.0,90352.0,0.00023846]
[1765600350419,0.51199515,90361.0,90352.0,0.00023846]
[1765600350799,0.46585271,90361.0,90352.0,0.00023846]
[1765600351165,0.46785271,90361.0,90352.0,0.00023846]
[1765600351361,0.46485271,90361.0,90352.0,0.00023846]
[1765600351606,0.46685271,90361.0,90352.0,0.00023846]
[1765600357142,0.45653404,90361.0,90352.0,0.00023846]
[1765600372001,0.49967648,90361.0,90352.0,0.00023846]
[1765600372588,0.45653404,90361.0,90352.0,0.00023846]
[1765600374519,0.49967648,90361.0,90352.0,0.00023846]
[1765600375319,0.45653404,90361.0,90352.0,0.00023846]
[1765600376265,0.46688123,90361.0,90352.0,0.00023846]
[1765600377432,0.51002367,90361.0,90352.0,0.00023846]
[1765600386330,0.46688123,90361.0,90352.0,0.00023846]
[1765600386533,0.51002367,90361.0,90352.0,0.00023846]
[1765600399631,0.51003415,90361.0,90352.0,0.00023846]
[1765600406728,0.49967648,90361.0,90352.0,0.00023846]
[1765600406932,0.51003533,90361.0,90352.0,0.00023846]
[1765600432963,0.46689289,90361.0,90352.0,0.00023846]
[1765600433118,0.46689289,90361.0,90350.0,0.0004]
[1765600433323,0.46689289,90361.0,90352.0,0.00023846]
[1765600442455,0.51003533,90361.0,90352.0,0.00023846]
[1765600442668,0.5338966,90361.0,90352.0,0.00023846]
[1765600442871,0.62357256,90361.0,90352.0,0.00023846]
[1765600443082,0.58391499,90361.0,90352.0,0.00023846]
[1765600443302,0.62167919,90361.0,90352.0,0.00023846]
[1765600443507,0.61967919,90361.0,90352.0,0.00023846]
[1765600443884,0.62267919,90361.0,90352.0,0.00023846]
[1765600444064,0.62567919,90361.0,90352.0,0.00023846]
[1765600444268,0.58591499,90361.0,90352.0,0.00023846]
[1765600445344,0.58291499,90361.0,90352.0,0.00023846]
[1765600445552,0.58591499,90361.0,90352.0,0.00023846]
[1765600445916,0.54277255,90361.0,90352.0,0.00023846]
[1765600446134,0.58591499,90361.0,90352.0,0.00023846]
[1765600446339,0.56205372,90361.0,90352.0,0.00023846]
[1765600448090,0.56254862,90361.0,90352.0,0.00023846]
[1765600451142,0.59234834,90361.0,90352.0,0.00023846]
[1765600452325,0.56254862,90361.0,90352.0,0.00023846]
[1765600457597,0.59922555,90361.0,90352.0,0.00023846]
[1765600459953,0.62902527,90361.0,90352.0,0.00023846]
[1765600464490,0.53586444,90361.0,90352.0,0.00023846]
[1765600464688,0.48862472,90361.0,90352.0,0.00023846]
[1765600465059,0.50606472,90361.0,90352.0,0.00023846]
[1765600465954,0.50306472,90361.0,90352.0,0.00023846]
[1765600466106,0.50006472,90361.0,90352.0,0.00023846]
[1765600466312,0.50206472,90361.0,90352.0,0.00023846]
[1765600466514,0.50506472,90361.0,90352.0,0.00023846]
[1765600467819,0.54820716,90361.0,90352.0,0.00023846]
[1765600468666,0.54820215,90361.0,90352.0,0.00023846]
[1765600471548,0.53485943,90361.0,90352.0,0.00023846]
[1765600471701,0.57800187,90361.0,90352.0,0.00023846]
[1765600473083,0.54820215,90361.0,90352.0,0.00023846]
[1765600480435,0.57800187,90361.0,90352.0,0.00023846]
[1765600481117,0.53485943,90361.0,90352.0,0.00023846]
[1765600481837,0.57800187,90361.0,90352.0,0.00023846]
[1765600482037,0.27786466,90361.0,90352.0,0.00023846]
[1765600482251,0.28051897,90361.0,90352.0,0.00023846]
[1765600483081,0.27551897,90361.0,90352.0,0.00023846]
[1765600483284,0.27651897,90361.0,90352.0,0.00023846]
[1765600484487,0.27851897,90361.0,90352.0,0.00023846]
[1765600505914,0.32166141,90361.0,90352.0,0.00023846]
[1765600506557,0.27851897,90361.0,90352.0,0.00023846]
[1765600523611,0.32166141,90361.0,90352.0,0.00023846]
[1765600523817,0.27851897,90361.0,90352.0,0.00023846]
[1765600530767,0.27851897,90361.0,90352.0,0.01130628]
[1765600531136,0.27851897,90361.0,90352.0,0.00023846]
[1765600531333,0.27851897,90361.0,90352.0,0.01130628]
[1765600533174,0.0034949,90361.0,90360.0,0.00141787]
[1765600533935,0.0014949,90361.0,90360.0,0.00141787]
[1765600534382,0.0024949,90361.0,90360.0,0.00141787]
[1765600535008,0.0014949,90361.0,90360.0,0.00141787]
[1765600552511,0.0014949,90361.0,90360.0,0.04460587]
[1765600552678,0.0014949,90361.0,90360.0,0.00141787]
[1765600562385,0.0014949,90361.0,90360.0,0.04460587]
[1765600562826,0.0014949,90361.0,90360.0,0.00141787]
[1765600571289,0.02251034,90361.0,90360.0,0.00141787]
[1765600573022,0.02251034,90361.0,90360.0,8.557e-05]
[1765600588503,0.23239804,90363.0,90360.0,8.557e-05]
[1765600588745,0.2213338,90362.0,90360.0,8.557e-05]
[1765600591210,0.2223338,90362.0,90360.0,8.557e-05]
[1765600605927,0.2213338,90362.0,90360.0,8.557e-05]
[1765600647042,0.1713338,90362.0,90360.0,8.557e-05]
[1765600649137,0.1713338,90362.0,90360.0,0.03331918]
[1765600655776,0.1713338,90362.0,90360.0,8.557e-05]
[1765600656168,0.1713338,90362.0,90360.0,0.03331918]
[1765600656611,0.1713338,90362.0,90360.0,8.557e-05]
[1765600662077,0.5235495,90370.0,90360.0,8.557e-05]
[1765600662078,0.01106255,90395.0,90389.0,0.01106329]
[1765600662297,0.01106243,90396.0,90392.0,0.043188]
[1765600662500,0.01106219,90398.0,90394.0,0.01106268]
[1765600662711,0.23229831,90401.0,90396.0,0.23231115]
[1765600662890,0.01106194,90400.0,90396.0,0.01239473]
[1765600663303,0.01106145,90404.0,90398.0,0.01106219]
[1765600663504,0.01106182,90401.0,90398.0,0.01106219]
[1765600664045,0.01106182,90401.0,90397.0,0.04428171]
[1765600664561,0.01106182,90401.0,90398.0,0.01106219]
[1765600664752,0.01106182,90401.0,90397.0,0.04428171]
[1765600664753,0.02211765,90399.0,90397.0,0.04428171]
[1765600666048,0.02211765,90399.0,90397.0,0.26552601]
[1765600666233,0.02211765,90399.0,90397.0,0.26652601]
[1765600667217,0.02211765,90399.0,90397.0,0.26785831]
[1765600667420,0.02211765,90399.0,90397.0,0.04661401]
[1765600668097,0.02211765,90399.0,90398.0,0.22124383]
[1765600668486,0.02324963,90399.0,90398.0,0.22124383]
[1765600669861,0.02324963,90399.0,90398.0,0.22224383]
[1765600672986,0.02324963,90399.0,90398.0,0.24549346]
[1765600673961,0.00113198,90399.0,90398.0,0.24682576]
[1765600674209,0.02211765,90420.0,90419.0,0.2907]
[1765600674408,0.02223363,90420.0,90419.0,0.2907]
[1765600674607,0.22119244,90419.0,90413.0,0.01106035]
[1765600674825,0.01105962,90419.0,90415.0,0.01106011]
[1765600674991,0.01105962,90419.0,90416.0,0.01105998]
[1765600675205,0.01105962,90419.0,90416.0,0.2907]
[1765600676161,0.01105962,90419.0,90416.0,0.01205998]
[1765600676493,0.02211765,90417.0,90416.0,0.01205998]
[1765600678030,0.02211765,90417.0,90416.0,0.01105998]
[1765600678231,0.02211765,90417.0,90416.0,0.01305998]
[1765600679309,0.02211765,90417.0,90416.0,0.002]
[1765600681031,0.02211765,90417.0,90416.0,0.0033323]
[1765600681259,0.02211765,90417.0,90416.0,0.2940323]
[1765600681457,0.00011598,90420.0,90419.0,0.22119244]
[1765600681661,0.00011598,90420.0,90419.0,0.22252474]
[1765600682846,0.00011598,90420.0,90419.0,0.55641274]
[1765600684224,0.00011598,90420.0,90419.0,0.55741274]
[1765600685097,0.00011598,90420.0,90419.0,0.55841274]
[1765600685351,0.00011598,90420.0,90419.0,0.58053039]
[1765600687498,0.01000816,90429.0,90426.0,0.01105876]
[1765600687699,0.02211765,90430.0,90427.0,0.01105864]
[1765600687909,0.03317592,90430.0,90427.0,0.01105864]
[1765600688114,0.00086342,90428.0,90427.0,0.01239094]
[1765600689043,0.00086342,90428.0,90427.0,0.04556686]
[1765600691213,0.00086342,90428.0,90427.0,0.33626686]
[1765600691418,0.00086342,90428.0,90427.0,0.37945486]
[1765600691664,0.00086342,90428.0,90427.0,0.33626686]
[1765600692747,0.00086342,90428.0,90427.0,0.33726686]
[1765600695954,0.00086342,90428.0,90427.0,0.30409094]
[1765600698460,0.00086342,90428.0,90427.0,0.34727894]
[1765600710183,0.00086342,90428.0,90427.0,0.30409094]
[1765600710614,0.00086342,90428.0,90427.0,0.34727894]
[1765600710819,0.00086342,90428.0,90427.0,0.30409094]
[1765600711028,0.00086342,90428.0,90427.0,0.34727894]
[1765600712536,0.00086342,90428.0,90427.0,0.30409094]
[1765600713225,0.00086342,90428.0,90427.0,0.34727894]
[1765600715198,0.00086342,90428.0,90427.0,0.34718718]
[1765600715938,0.00086342,90428.0,90427.0,0.36466718]
[1765600717532,0.00086342,90428.0,90427.0,0.36366718]
[1765600733655,0.00086342,90428.0,90427.0,0.32047918]
[1765600733937,0.00086342,90428.0,90427.0,0.36362718]
[1765600747314,0.00086342,90428.0,90427.0,0.0013323]
[1765600748160,0.22203385,90428.0,90427.0,0.0013323]
[1765600748527,0.22203385,90428.0,90427.0,0.0033323]
[1765600751439,0.00086342,90428.0,90427.0,0.0033323]
[1765600757356,0.00086342,90428.0,90427.0,0.03653648]
[1765600759342,0.00086342,90428.0,90427.0,0.07972448]
[1765600760126,0.00086342,90428.0,90427.0,0.03653648]
[1765600765570,0.00086342,90428.0,90427.0,0.07972448]
[1765600769122,0.00086342,90428.0,90427.0,0.03653648]
[1765600772249,0.00086342,90428.0,90427.0,0.07972448]
[1765600772444,0.00086342,90428.0,90427.0,0.03653648]
[1765600776212,0.00086342,90428.0,90427.0,0.03520418]
[1765600776821,0.00086342,90428.0,90427.0,0.07839218]
[1765600781871,0.00086342,90428.0,90427.0,0.03520418]
[1765600792228,0.00086342,90428.0,90427.0,0.07839218]
[1765600795013,0.00086342,90428.0,90427.0,0.03520418]
[1765600795413,0.00086342,90428.0,90427.0,0.07839218]
[1765600795787,0.00086342,90428.0,90427.0,0.03520418]
[1765600796020,0.00086342,90428.0,90427.0,0.07839218]
[1765600797924,0.00086342,90428.0,90427.0,0.03520418]
[1765600801742,0.00086342,90428.0,90427.0,0.32590418]
[1765600802823,0.00086342,90428.0,90427.0,0.03520418]
[1765600830822,0.00086342,90428.0,90427.0,0.56584935]
[1765600830952,0.00086342,90428.0,90427.0,0.60903735]
[1765600832033,0.00086342,90428.0,90427.0,0.60803735]
[1765600832177,0.00086342,90428.0,90427.0,0.60903735]
[1765600832735,0.00086342,90428.0,90427.0,0.60803735]
[1765600832881,0.00086342,90428.0,90427.0,0.60903735]
[1765600835447,0.00086342,90428.0,90427.0,0.62536646]
[1765600856425,0.00086342,90428.0,90427.0,0.58217846]
[1765600857209,0.00086342,90428.0,90427.0,0.62536646]
[1765600862665,0.00086342,90428.0,90427.0,0.58217846]
[1765600863071,0.00086342,90428.0,90427.0,0.62536646]
[1765600864689,0.00086342,90428.0,90427.0,0.58217846]
[1765600866129,0.00086342,90428.0,90427.0,0.62536646]
[1765600867169,0.00086342,90428.0,90427.0,0.58217846]
[1765600867972,0.00086342,90428.0,90427.0,0.62536646]
[1765600868951,0.00086342,90428.0,90427.0,0.59159735]
[1765600869161,0.00114399,90428.0,90427.0,0.32590418]
[1765600869941,0.00114399,90428.0,90427.0,0.32490418]
[1765600870443,0.00114399,90428.0,90427.0,0.32390418]
[1765600877197,0.00114399,90428.0,90427.0,0.2907]
[1765600878632,0.00114399,90428.0,90427.0,0.2917]
[1765600883113,0.00114399,90428.0,90427.0,0.2907]
[1765600883290,0.00114399,90428.0,90427.0,0.2917]
[1765600884017,0.00114399,90428.0,90427.0,0.2927]
[1765600892311,0.00114399,90428.0,90427.0,0.002]
[1765600893440,0.00114399,90428.0,90427.0,0.001]
[1765600893584,0.01106109,90407.0,90404.0,0.33026302]
[1765600893814,0.01106109,90407.0,90404.0,0.33159532]
[1765600894016,0.01106109,90407.0,90404.0,0.30309375]
[1765600894279,0.01106109,90407.0,90405.0,0.01106109]
[1765600895421,0.0110606,90411.0,90408.0,0.01106096]
[1765600895623,0.0110606,90411.0,90408.0,0.0013323]
[1765600896491,0.0110606,90411.0,90408.0,0.01239326]
[1765600896906,0.01106047,90412.0,90409.0,0.2907]
[1765600897116,0.01106047,90412.0,90409.0,0.2920323]
[1765600897486,0.2322643,90415.0,90411.0,0.0110606]
[1765600898100,0.01106011,90415.0,90412.0,0.30176047]
[1765600898878,0.01106011,90415.0,90412.0,0.30309277]
[1765600900392,0.01106011,90415.0,90412.0,0.30409277]
[1765600900695,0.01106011,90415.0,90412.0,0.30509277]
[1765600900875,0.00041689,90413.0,90412.0,0.30509277]
[1765600901674,0.00041689,90413.0,90412.0,0.30409277]
[1765600901875,0.00041689,90413.0,90412.0,0.30309277]
[1765600902063,0.00041689,90413.0,90412.0,0.0013323]
[1765600913793,0.00041689,90413.0,90412.0,0.00144828]
[1765600919444,0.00041689,90413.0,90412.0,0.04463628]
[1765600922433,0.00041689,90413.0,90412.0,0.00144828]
[1765600938469,0.00041689,90413.0,90412.0,0.01250826]
[1765600941599,0.00041689,90413.0,90412.0,0.05569626]
[1765600942988,0.00041689,90413.0,90412.0,0.07781721]
[1765600951269,0.00041689,90413.0,90412.0,0.05569626]
[1765600960847,0.00041689,90413.0,90412.0,0.07781721]
[1765600961913,0.00041689,90413.0,90412.0,0.05569626]
[1765600962125,0.00041689,90413.0,90412.0,0.07781721]
[1765600964328,0.00041689,90413.0,90412.0,0.03462921]
[1765600964525,0.00041689,90413.0,90412.0,0.07781721]
[1765600976411,0.00041689,90413.0,90412.0,0.03462921]
[1765600976617,0.00041689,90413.0,90412.0,0.07781721]
[1765600978021,0.00041689,90413.0,90412.0,0.05569626]
[1765600981064,0.00041689,90413.0,90412.0,0.01250826]
[1765600981430,0.00041689,90413.0,90412.0,0.05569626]
[1765600983401,0.00041689,90413.0,90412.0,0.01250826]
[1765600985288,0.00041689,90413.0,90412.0,0.05569626]
[1765600987674,0.00041689,90413.0,90412.0,0.01250826]
[1765600995917,0.00041689,90413.0,90412.0,0.05569626]
[1765601004265,0.00041689,90413.0,90412.0,0.02994826]
[1765601018581,0.00041689,90413.0,90412.0,0.07313626]
[1765601038927,0.00041689,90413.0,90412.0,0.02994826]
[1765601039132,0.00041689,90413.0,90412.0,0.07313626]
[1765601039916,0.00041689,90413.0,90412.0,0.38595721]
[1765601040089,0.00041689,90413.0,90412.0,0.36383626]
[1765601042432,0.00041689,90413.0,90412.0,0.32064826]
[1765601042652,0.00041689,90413.0,90412.0,0.36383626]
[1765601042852,0.00041689,90413.0,90412.0,0.32064826]
[1765601047584,0.00041689,90413.0,90412.0,0.36383626]
[1765601065174,0.00041689,90413.0,90412.0,0.32064826]
[1765601065379,0.00041689,90413.0,90412.0,0.36383626]
[1765601069491,0.00041689,90413.0,90412.0,0.44335301]
[1765601071126,0.00041689,90413.0,90412.0,0.36383626]
[1765601072239,0.00041689,90413.0,90412.0,0.44339991]
[1765601072976,0.00041689,90413.0,90412.0,0.41385465]
[1765601078962,0.00041689,90413.0,90412.0,0.37066665]
[1765601079151,0.00041689,90413.0,90412.0,0.41385465]
[1765601079968,0.00041689,90413.0,90412.0,0.41585465]
[1765601080191,0.00041689,90413.0,90412.0,0.41785465]
[1765601081286,0.00041689,90413.0,90412.0,0.35039626]
[1765601081449,0.00041689,90413.0,90412.0,0.36783626]
[1765601082395,0.00041689,90413.0,90412.0,0.36383626]
[1765601082572,0.00041689,90413.0,90412.0,0.36583626]
[1765601082784,0.00041689,90413.0,90412.0,0.36783626]
[1765601082986,0.00041689,90413.0,90412.0,0.44733757]
[1765601088166,0.00041689,90413.0,90412.0,0.36783626]
[1765601088577,0.00041689,90413.0,90412.0,0.44733893]
[1765601089127,0.00041689,90413.0,90412.0,0.36783626]
[1765601091218,0.00041689,90413.0,90412.0,0.35039626]
[1765601091388,0.00041689,90413.0,90412.0,0.36783626]
[1765601098978,0.00041689,90413.0,90412.0,0.32464826]
[1765601099135,0.00041689,90413.0,90412.0,0.36783626]
[1765601103465,0.00041689,90413.0,90412.0,0.32464826]
[1765601104221,0.00041689,90413.0,90412.0,0.40420628]
[1765601104422,0.00041689,90413.0,90412.0,0.40220628]
[1765601104629,0.00041689,90413.0,90412.0,0.38276628]
[1765601104826,0.00041689,90413.0,90412.0,0.40220628]
[1765601105003,0.00041689,90413.0,90412.0,0.40420628]
[1765601108038,0.00041689,90413.0,90412.0,0.44739428]
[1765601110299,0.00041689,90413.0,90412.0,0.36783626]
[1765601140669,0.00041689,90413.0,90412.0,0.32464826]
[1765601140823,0.00041689,90413.0,90412.0,0.36783626]
[1765601160645,0.00041689,90413.0,90412.0,0.35039626]
[1765601160871,0.00041689,90413.0,90412.0,0.36783626]
[1765601184265,0.00041689,90413.0,90412.0,0.32464826]
[1765601184471,0.00041689,90413.0,90412.0,0.36783626]
[1765601199677,0.00041689,90413.0,90412.0,0.32464826]
[1765601199925,0.00041689,90413.0,90412.0,0.36783626]
[1765601207977,0.00041689,90413.0,90412.0,0.32464826]
[1765601208273,0.00041689,90413.0,90412.0,0.36783626]
[1765601218227,0.00041689,90413.0,90412.0,0.41785465]
[1765601226609,0.00041689,90413.0,90412.0,1.41785465]
[1765601227250,7.069e-05,90413.0,90412.0,1.41785465]
[1765601227817,7.069e-05,90413.0,90412.0,1.37466665]
[1765601228017,7.069e-05,90413.0,90412.0,1.41785465]
[1765601237312,1.199e-05,90413.0,90412.0,1.41785465]
[1765601247233,0.01105656,90444.0,90442.0,0.043188]
[1765601247436,0.01133713,90444.0,90442.0,0.043188]
[1765601247818,0.01133713,90444.0,90443.0,0.03320062]
[1765601248442,0.01233713,90444.0,90443.0,0.03320062]
[1765601248848,0.01133713,90444.0,90443.0,0.07638862]
[1765601249068,0.00028057,90444.0,90443.0,0.07638862]
[1765601249419,0.00128057,90444.0,90443.0,0.07638862]
[1765601249619,0.00028057,90444.0,90443.0,0.07638862]
[1765601250141,0.00128057,90444.0,90443.0,0.07638862]
[1765601250441,0.00028057,90444.0,90443.0,0.07638862]
[1765601250656,0.00128057,90444.0,90443.0,0.07638862]
[1765601250987,0.00228057,90444.0,90443.0,0.07638862]
[1765601251716,0.00128057,90444.0,90443.0,0.07638862]
[1765601253096,0.00128057,90444.0,90443.0,0.36708862]
[1765601253486,0.0022033,90444.0,90443.0,0.36708862]
[1765601254748,0.0022033,90444.0,90443.0,0.07638862]
[1765601254956,0.0022033,90444.0,90443.0,0.03320062]
[1765601259736,0.0022033,90444.0,90443.0,0.36708862]
[1765601261429,0.00192273,90444.0,90443.0,0.36708862]
[1765601262471,0.00092273,90444.0,90443.0,0.36708862]
[1765601271235,0.00092273,90444.0,90443.0,0.32523292]
[1765601271582,0.00092273,90444.0,90443.0,0.36842092]
[1765601276853,0.00092273,90444.0,90443.0,0.34267292]
[1765601277061,0.00092273,90444.0,90443.0,0.38586092]
[1765601278069,0.00092273,90444.0,90443.0,0.34267292]
[1765601286429,0.00092273,90444.0,90443.0,0.38586092]
[1765601305533,0.00092273,90444.0,90443.0,0.34267292]
[1765601306118,0.00092273,90444.0,90443.0,0.38586092]
[1765601317239,0.00092273,90444.0,90443.0,0.34258165]
[1765601317442,0.00092273,90444.0,90443.0,0.38576965]
[1765601382732,0.00092273,90444.0,90443.0,0.34258165]
[1765601382894,0.00092273,90444.0,90443.0,0.38576965]
[1765601386970,0.00092273,90444.0,90443.0,0.46515038]
[1765601387178,0.00092273,90444.0,90443.0,0.38576965]
[1765601387394,0.00092273,90444.0,90443.0,0.46518745]
[1765601388298,0.00092273,90444.0,90443.0,0.38576965]
[1765601388919,0.00092273,90444.0,90443.0,0.38676965]
[1765601389436,0.00092273,90444.0,90443.0,0.38776965]
[1765601409229,0.00092273,90444.0,90443.0,0.46715587]
[1765601409649,0.00092273,90444.0,90443.0,0.42396787]
[1765601409782,0.00092273,90444.0,90443.0,0.03644165]
[1765601410192,0.00092273,90444.0,90443.0,0.03510935]
[1765601410193,0.0012033,90444.0,90443.0,0.03510935]
[1765601419794,0.0012033,90444.0,90443.0,0.07829735]
[1765601420380,0.0012033,90444.0,90443.0,0.03510935]
[1765601448413,0.0012033,90444.0,90443.0,0.36899735]
[1765601448698,0.0012033,90444.0,90443.0,0.07829735]
[1765601449324,0.0012033,90444.0,90443.0,0.03510935]
[1765601451117,0.0012033,90444.0,90443.0,0.32580935]
[1765601462205,0.2223346,90444.0,90443.0,0.03510935]
[1765601462830,0.2223346,90444.0,90443.0,0.002]
[1765601463145,0.2223346,90444.0,90443.0,0.001]
[1765601463321,0.2223346,90444.0,90442.0,0.03320062]
[1765601463529,0.02211765,90443.0,90442.0,0.03320062]
[1765601468806,0.02301062,90443.0,90442.0,0.03320062]